Cogmind - Beta 13 @@@ ROGUE MODE // 2024.07.28 @ 05:48:04 Player: jagoly Result: Destroyed by G-50 Soldier with Heavy Laser Performance ------------- Evolutions (5) 2500 Regions Visited (16) 3200 Robots Destroyed (386) 1930 Value Destroyed (15497) 15497 Prototype IDs (39) 780 Alien Tech Used (0) 0 Bonus (7469) 7469 TOTAL SCORE: 31376 Bonus ------- Triggered High Security 500 High Alert Combat Kills 4870 Follower Combat Kills 2040 Entered Garrisons 200 Network Hubs Disabled 400 Acquired ECA 300 Built Enhanced Grunts 300 A7 Reached Mainframe 300 Met R17 at Cetus 500 Friendly Fire -1941 Cogmind --------- Core Integrity 0/1000 Matter 239/300 Energy 9/100 System Corruption 22% Temperature Cool (13) Movement Hovering (86) Location -5/Upper Caves Parts ------- > --- POWER (2) -------- (None) > --- PROPULSION (4) --- Armored Medium Treads Gyrokinetic Inverter Gyrokinetic Inverter > --- UTILITY (8) ------ Advanced Signal Interpreter 0b10 Decoder Chip [Generic] Improved Melee Analysis Suite Makeshift Hacking Suite > --- WEAPON (3) ------- Heavy Flail > --- INVENTORY (5) ---- Large Storage Unit Encrypted Comm Array Experimental Thermal Shield Advanced Shield Generator Heavy Ion Cannon Peak State ------------ > --- POWER ------------ Light Neutrino Core Reinforced Fission Core > --- PROPULSION ------- Medium Treads Improved Medium Treads Centrium Heavy Treads > --- UTILITY ---------- Experimental Heat Sink Large Storage Unit Advanced Targeting Computer Experimental Targeting Computer Core Analyzer EM Disruption Field Force Field Improved System Shield > --- WEAPON ----------- Enhanced Coil Gun Enhanced Coil Gun Advanced KE Penetrator > --- INVENTORY -------- Light Antimatter Reactor Improved Medium Treads Experimental Heat Sink Advanced Energy Well Improved Signal Interpreter Medium Reactive Plating Experimental Thermal Shield Remote Force Field EMDS Neutron Cannon Enhanced Coil Gun Advanced KE Penetrator Tiamat Missile Launcher Heavy Flail [Rating: 108] Favorites ----------- Power Heavy Deuterium Engine Engine Heavy Deuterium Engine Power Core Neutrino Core Reactor Quantum Reactor Propulsion Light Treads Treads Light Treads Leg Aluminum Leg Wheel Armored Wheel Hover Unit Gyrokinetic Inverter Utility Large Storage Unit Device Improved Heat Sink Storage Large Storage Unit Processor Core Analyzer Hackware Hacking Suite Protection Hardened Heavy Armor Plating Weapon Heavy Plasma Cannon Energy Gun Small Laser Energy Cannon Heavy Plasma Cannon Ballistic Gun Gauss Rifle Launcher Mini Smartbomb Launcher Special Weapon Remote Datajack Impact Weapon Heavy Flail Build | -11 -10 -10 -10 -8 -7 -7 -7 -7 -7 -6 -6 -6 -6 -6 -5 -5 ------- Run | Yrd Mat Min Sub Mat Fac Was Fac Gar Fac Fac Ext Cet Arc Hub Fac Upp Slots Evolved 10 | . . . . 4 2 . . . . 2 . . . . 2 . Power 1 | . . . . . . . . . . 1 . . . . . . Propulsion 2 | . . . . 1 1 . . . . . . . . . . . Utility 6 | . . . . 3 1 . . . . . . . . . 2 . Weapon 1 | . . . . . . . . . . 1 . . . . . . Parts Attached 469 | 6 15 16 5 70 19 7 76 26 39 35 22 4 14 30 76 9 Power 40 | 1 1 2 . 5 1 . 5 1 2 3 3 2 3 5 5 1 Engine 24 | 1 1 2 . 4 1 . 5 1 2 3 3 . . . 1 . Core 13 | . . . . 1 . . . . . . . 1 2 4 4 1 Reactor 3 | . . . . . . . . . . . . 1 1 1 . . Propulsion 115 | 2 9 6 . 16 5 2 20 8 14 3 7 1 1 4 16 1 Treads 71 | . . 5 . 15 5 2 8 3 6 3 7 1 1 4 11 . Leg 19 | 2 9 1 . . . . 1 5 . . . . . . . 1 Wheel 19 | . . . . . . . 8 . 8 . . . . . 3 . Hover 6 | . . . . 1 . . 3 . . . . . . . 2 . Flight . | . . . . . . . . . . . . . . . . . Utility 172 | 1 4 . 2 17 6 3 36 10 19 15 6 . 6 15 26 6 Device 97 | . 3 . 1 9 4 2 14 5 14 9 5 . 3 11 14 3 Storage 11 | 1 1 . . 1 1 . 4 . . 1 1 . . . 1 . Processor 17 | . . . 1 2 . 1 3 2 1 1 . . . 1 3 2 Hackware 14 | . . . . 3 . . 3 . . 3 . . 2 . 2 1 Protection 33 | . . . . 2 1 . 12 3 4 1 . . 1 3 6 . Artifact . | . . . . . . . . . . . . . . . . . Weapon 142 | 2 1 8 3 32 7 2 15 7 4 14 6 1 4 6 29 1 Energy Gun 21 | 1 1 2 1 8 1 . 2 1 . 2 . . . . 2 . Energy Cannon 42 | . . . 2 14 3 1 4 2 2 4 4 1 2 2 1 . Ballistic Gun 53 | 1 . 4 . 5 3 . 7 2 . 6 2 . 2 3 18 . Ballistic Cannon . | . . . . . . . . . . . . . . . . . Launcher 19 | . . 2 . 5 . . 2 2 1 . . . . . 7 . Special Weapon 2 | . . . . . . . . . . 1 . . . 1 . . Impact Weapon 5 | . . . . . . 1 . . 1 1 . . . . 1 1 Slashing Weapon . | . . . . . . . . . . . . . . . . . Piercing Weapon . | . . . . . . . . . . . . . . . . . Special Melee Weapon . | . . . . . . . . . . . . . . . . . Unidentified Prototypes 32 | . . . . 6 3 . 3 1 2 2 . 1 2 3 9 . Corrupted Parts 5 | . . 1 2 . . . . . . . . . 1 . 1 . System Corruption 35 | . . 10 13 . . . . . . . . . 6 . 6 . Parts Lost 93 | . 1 1 . 16 1 6 9 13 . 2 6 1 . 7 27 3 Power 10 | . 1 . . 3 . 1 . 1 . . . . . 2 1 1 Propulsion 32 | . . . . 5 . 2 3 6 . 1 2 1 . 1 10 1 Utility 29 | . . . . 6 1 1 5 2 . . 1 . . 2 10 1 Weapon 22 | . . 1 . 2 . 2 1 4 . 1 3 . . 2 6 . Highest Loss Streak 23 | . 1 1 . 5 1 5 6 9 . 2 2 1 . 5 23 3 To Critical Strikes 2 | . . . . . . . . . . . . . . . 2 . Average Slot Usage (%) 92 | . 96 99 100 97 92 48 88 90 91 96 99 96 90 89 90 57 Engine 7 | . 12 14 14 4 7 3 6 6 7 12 12 6 4 . 1 . Core 1 | . . . . 4 . . . . . . . 3 1 6 8 4 Treads 17 | . . 16 28 26 30 14 14 6 14 16 25 23 19 18 18 5 Leg 3 | . 28 11 . . . . . 21 1 . . . . . . 3 Wheel 3 | . . . . . . . 10 . 13 9 . . . . . . Device 9 | . 11 14 14 13 7 3 11 5 6 5 5 6 5 7 10 4 Storage 7 | . 14 14 14 9 7 3 6 7 7 6 6 6 6 6 4 . Processor 9 | . . . . 1 7 5 5 13 15 13 13 13 13 14 15 13 Hackware 7 | . . . . 12 7 3 6 5 . 9 13 13 13 7 5 4 Protection 3 | . . . . 6 7 3 7 7 7 1 . . . 1 4 . Energy Gun 3 | . 14 16 27 2 . . . . . . 4 . . . . . Energy Cannon 9 | . . . . 13 5 6 9 9 14 12 12 20 17 14 . . Ballistic Gun 5 | . 14 10 . 1 8 1 4 3 . 5 1 . 1 3 15 . Naked Turns 39 | . . . . . . 34 5 . . . . . . . . . Heaviest Build 98 | 12 29 33 40 50 63 66 59 70 73 89 76 81 84 91 98 22 Greatest Support 138 | 20 20 40 40 68 93 93 92 88 77 99 115 128 131 131 138 22 Greatest Overweight (x) 3 | . 1 1 . 1 . 1 2 2 3 3 . . . . 1 . Average Overweight (x) . | . . . . . . . . . 1 1 . . . . . . Largest Inventory Capacity 25 | 8 15 15 15 15 15 15 25 15 15 15 15 15 15 15 15 5 Average Capacity 14 | 6 9 15 15 15 15 10 14 15 15 15 15 15 15 15 14 5 Most Carried 15 | 3 13 15 15 15 15 15 15 15 15 15 15 15 15 15 15 5 Average Carried 13 | 1 7 14 14 13 14 9 13 12 14 14 14 14 14 14 14 3 Final Capacity 15 | 8 15 15 15 15 15 5 15 15 15 15 15 15 15 15 5 5 Final Carried 15 | 3 13 15 14 15 15 4 15 15 13 14 15 15 15 15 5 5 Class Distribution -------------------- 28% | Mutant 21% | Scavenger-Mutant 14% | Scavenger-Gunner 12% | Hacker-Gunner 9% | Commander-Gunner 8% | Hacker-Mutant Dominant Class ---------------- Mutant | -10/Materials Scavenger-Mutant | -10/Mines Scavenger-Mutant | -10/Subcaves Hacker-Mutant | -8/Materials Scavenger-Mutant | -7/Factory Mutant | -7/Waste Mutant | -7/Factory Scavenger-Mutant | -7/Garrison Mutant | -7/Factory Hacker-Gunner | -6/Factory Hacker-Gunner | -6/Extension Commander-Gunner | -6/Cetus Commander-Gunner | -6/Archives Scavenger-Gunner | -6/Hub_04(d) Scavenger-Gunner | -5/Factory Derelict-Mutant | -5/Upper Caves Resources | -11 -10 -10 -10 -8 -7 -7 -7 -7 -7 -6 -6 -6 -6 -6 -5 -5 ----------- Run | Yrd Mat Min Sub Mat Fac Was Fac Gar Fac Fac Ext Cet Arc Hub Fac Upp Matter Collected 8933 | 162 379 260 51 1001 280 . 1583 613 384 674 331 67 149 449 2474 76 Remotely 10 | . . . . . . . . . 10 . . . . . . . Salvage Created 18619 | . 554 350 228 2436 636 . 2430 792 1249 1419 1370 64 266 1949 4876 . Parts 875 | . 24 18 14 127 35 . 119 33 58 68 70 1 16 78 214 . Haulers Intercepted 19 | . 1 . . 6 1 . 4 . . 1 1 . . . 5 . Recyclers Shooed 13 | . 3 . . 1 . . 3 . . 1 . . . . 5 . Parts Field Recycled . | . . . . . . . . . . . . . . . . . Retrieved Matter . | . . . . . . . . . . . . . . . . . Parts Self-Destructed 9 | . . . 9 . . . . . . . . . . . . . Prevented . | . . . . . . . . . . . . . . . . . Kills | -11 -10 -10 -10 -8 -7 -7 -7 -7 -7 -6 -6 -6 -6 -6 -5 -5 ------- Run | Yrd Mat Min Sub Mat Fac Was Fac Gar Fac Fac Ext Cet Arc Hub Fac Upp Combat Hostiles Destroyed 276 | . 8 15 5 44 13 . 36 19 20 15 18 1 . 18 64 . Melee 2 | . . . . . . . . 2 . . . . . . . . Guns 117 | . 8 8 5 7 5 . 12 5 . 5 7 . . 6 49 . Cannons 97 | . . . . 20 8 . 16 2 19 10 11 . . 11 . . AOE 48 | . . 5 . 11 . . 8 10 . . . . . . 14 . Classes Destroyed 22 | . 4 1 1 9 1 . 1 1 1 . 1 . . 1 1 . Worker 18 | . . . . 2 1 . 2 . 2 . . . . 5 6 . Builder 12 | . . . . 1 1 . . . . 2 2 . . 1 5 . Tunneler 1 | . . . . . . . . . . . . . . . 1 . Hauler 19 | . 1 . . 6 1 . 4 . . 1 1 . . . 5 . Recycler 21 | . 2 . . 3 . . 5 . 1 2 . . . 2 6 . Carrier 1 | . . . . . . . . . 1 . . . . . . . Mechanic 3 | . . . . . . . 1 . . . . . . . 2 . Operator 17 | . 1 . . . . . 3 1 1 3 . . 8 . . . Watcher 20 | . . . . 4 . . 4 . 1 4 2 . . 2 3 . Swarmer 47 | . . 9 . 8 5 . 4 4 3 . 3 . . 1 10 . Cutter 2 | . . . . . . . . 2 . . . . . . . . Grunt 122 | . 8 6 . 23 5 . 16 9 8 6 1 . . 8 32 . Brawler 15 | . . . . 1 . . 1 1 1 . 2 . . 3 6 . Duelist 5 | . . . . 1 . . 1 1 1 . . . . . 1 . Protector 2 | . . . . . . . . . . . . . . 1 1 . Sentry 36 | . . . . 7 1 . 7 . 3 4 9 . . 1 4 . Specialist 4 | . . . . 2 . . . . . . . . . 2 . . Hunter 11 | . . . . 1 . . 1 1 1 1 . . . . 6 . Programmer 21 | . . . . . 2 . 6 1 3 4 1 . . . 4 . Heavy 1 | . . . . 1 . . . . . . . . . . . . Behemoth 2 | . . . . . . . . . . . 2 . . . . . Cetus Guard 1 | . . . . . . . . . . . . 1 . . . . Enhanced Grunt 3 | . . . . . . . . . . . . . . 3 . . Lightning 2 | . . . . . . . . . . . . . . 2 . . Subdweller 5 | . . . 5 . . . . . . . . . . . . . Thug 2 | . . . . . . . . . . . . . . 2 . . Butcher 1 | . . . . . . . . . . . . . . 1 . . Best Kill Streak 15 | . 3 6 2 6 12 . 9 15 8 8 5 1 4 14 12 . Combat Bots Only 15 | . 2 6 2 5 10 . 6 15 7 4 5 1 . 9 10 . Max Kills in Single Turn 6 | . 1 2 1 4 2 . 3 6 2 4 1 1 1 4 3 . Gunslinging 1 | . . . . . . . . . . . . . . . 1 . Exploded 6 | . . 2 . 4 . . 3 6 . . . . . . 3 . Melee 1 | . . . . . . . . 1 . . . . . . . . Uniques/NPCs Destroyed . | . . . . . . . . . . . . . . . . . Combat | -11 -10 -10 -10 -8 -7 -7 -7 -7 -7 -6 -6 -6 -6 -6 -5 -5 -------- Run | Yrd Mat Min Sub Mat Fac Was Fac Gar Fac Fac Ext Cet Arc Hub Fac Upp Hostile Shots Fired 2054 | . 47 62 16 209 85 8 418 152 102 120 176 21 . 153 426 59 Missed 642 | . 15 19 9 58 28 1 152 37 41 53 68 3 . 28 115 15 Damage Taken 21017 | . 362 501 157 2627 791 333 2699 2574 786 1174 1363 491 . 2086 4381 692 Core 2696 | . 79 54 72 313 26 190 205 251 26 133 135 22 . 184 866 140 Absorbed by Shields 2349 | . . . . 174 . . 485 . . . 51 99 . . 1385 155 Reduced by Siege Mode 161 | . . . . . . . . . . . . . . 126 35 . Redirected to Shielding 46 | . . . . . . . . . . . . . . 46 . . Ignored by Resistances 814 | . . . . . . . 148 . . 12 . . . 114 540 . Core Remaining (%) 41 | 100 . . 18 43 . . . . . . . . . 44 . . Volleys Fired 871 | . 52 45 18 131 41 2 153 76 49 45 49 3 16 41 150 . Largest 3 | . 2 2 2 2 2 2 2 2 2 3 3 3 3 3 3 . Hottest 285 | . 60 96 96 160 108 145 145 159 180 210 285 285 285 285 98 . Shots Fired 1823 | . 102 80 26 236 82 4 290 85 97 132 139 7 48 106 389 . Gun 992 | . 102 77 26 70 43 . 145 18 . 53 58 . . 28 372 . Cannon 794 | . . . . 160 39 4 139 58 97 79 81 7 48 78 4 . Launcher 37 | . . 3 . 6 . . 6 9 . . . . . . 13 . Special . | . . . . . . . . . . . . . . . . . Kinetic 742 | . 52 21 . 15 43 . 135 14 . 43 19 . . 28 372 . Thermal 1018 | . 32 56 26 215 39 4 149 62 97 89 120 7 48 74 . . Explosive 37 | . . 3 . 6 . . 6 9 . . . . . . 13 . Electromagnetic 26 | . 18 . . . . . . . . . . . . 4 4 . Robot Hit Streak 57 | . 11 14 12 11 19 2 19 12 9 27 17 3 10 24 57 . Robot Miss Streak 11 | . 11 3 1 4 3 2 7 6 2 4 4 3 5 2 3 . Penetration Max 2 | . . . . . . . 1 1 . . . . . 1 2 . Secondary Targets 14 | . . 1 . . . . 1 2 . . . . . . 10 . Max Gunslinging Chain 2 | . . 1 . . . . 1 1 . . . . . . 2 . Shots Hit Robots 1236 | . 59 56 20 152 57 2 213 51 59 83 90 3 26 69 289 7 Core Hits 701 | . 25 18 8 85 28 . 102 54 31 43 39 2 14 53 199 . Critical Kills 27 | . . . . 2 . . 1 . . . 2 . 2 5 15 . Critical Parts Destroyed 19 | . . . . . 1 . 3 . . . 1 . . 2 12 . Critical Strikes 57 | . . . . 8 1 . 4 . . . 4 . 2 7 30 1 Burn 4 | . . . . 4 . . . . . . . . . . . . Meltdown 5 | . . . . 2 . . . . . . . . 2 1 . . Destroy 46 | . . . . 2 1 . 4 . . . 4 . . 6 29 . Corrupt 1 | . . . . . . . . . . . . . . . 1 . Smash 1 | . . . . . . . . . . . . . . . . 1 Melee Attacks 9 | . . . . . . . . . . . . . . . . 9 Impact 9 | . . . . . . . . . . . . . . . . 9 Slashing . | . . . . . . . . . . . . . . . . . Piercing . | . . . . . . . . . . . . . . . . . Sneak Attacks . | . . . . . . . . . . . . . . . . . Combat Hostiles . | . . . . . . . . . . . . . . . . . Follow-up Attacks . | . . . . . . . . . . . . . . . . . Damage Inflicted 42498 | . 756 985 260 4882 1340 52 6102 2669 2906 2883 3166 188 887 3781 11394 247 Guns 16700 | . 756 665 260 982 631 . 2405 399 . 709 1003 . . 584 8306 . Cannons 17135 | . . . . 2821 709 52 2636 812 2709 1956 2163 188 887 2096 106 . Explosions 8377 | . . 320 . 1072 . . 1061 1426 197 218 . . . 1101 2982 . Melee 247 | . . . . . . . . . . . . . . . . 247 Ramming 39 | . . . . 7 . . . 32 . . . . . . . . Kinetic 13638 | . 427 139 . 290 631 . 2199 310 . 539 213 . . 584 8306 . Thermal 20228 | . 229 526 260 3513 709 52 2963 901 2709 2344 2953 188 887 1832 162 . Explosive 6423 | . . 320 . 1072 . . 940 1426 114 . . . . . 2551 . Electromagnetic 1923 | . 100 . . . . . . . 83 . . . . 1365 375 . Impact 247 | . . . . . . . . . . . . . . . . 247 Slashing . | . . . . . . . . . . . . . . . . . Piercing . | . . . . . . . . . . . . . . . . . Highest Corruption 24 | . 1 11 24 11 1 12 18 16 17 1 1 1 6 15 22 22 Average Corruption 7 | . 1 1 11 10 1 6 10 16 14 1 1 1 1 9 4 22 Corruption Purged 40 | . . . . . 1 1 10 . 15 . . . 7 6 . . Corruption Blocked . | . . . . . . . . . . . . . . . . . Effects 470 | . 3 11 19 95 1 6 99 68 76 15 18 4 4 13 17 21 Message Errors 112 | . . 4 2 24 1 2 31 17 15 1 4 . 1 2 3 5 Matter Fused 118 | . 1 1 3 21 . 1 30 17 13 5 10 1 1 5 2 7 Heat Flow Errors 48 | . . . 2 8 . 1 8 8 9 2 1 2 . 2 3 2 Energy Discharges 53 | . . 2 3 13 . 1 8 4 9 3 2 . 1 1 3 3 Parts Rejected 5 | . . . 1 1 . . . . 1 . . . . . 2 . Parts Fused 5 | . . . . 1 . . 2 1 1 . . . . . . . Data Loss (minor) 59 | . 2 . 4 8 . . 8 14 15 3 . . 1 1 1 2 Data Loss (major) 19 | . . . 1 6 . . 3 1 3 . . 1 . 2 . 2 Misfires 18 | . . 2 1 3 . . 3 3 4 1 . . . . 1 . Alerts 7 | . . . 1 . . . 2 . 4 . . . . . . . Misdirections 7 | . . . 1 2 . 1 1 1 . . . . . . 1 . Weapon Failures 19 | . . 2 . 8 . . 3 2 2 . 1 . . . 1 . Overload Shots 86 | . . . . . . . . 7 33 18 16 3 1 8 . . Effects 7 | . . . . . . . . 1 2 2 1 1 . . . . Energy Bleed 3 | . . . . . . . . . 1 . 1 1 . . . . Heat Surge 3 | . . . . . . . . 1 . 2 . . . . . . Short Circuit 1 | . . . . . . . . . 1 . . . . . . . Overflow Damage 1120 | . . 21 . 77 2 . 215 102 202 250 26 . 44 124 57 . Projectiles 608 | . . . . 25 2 . 82 24 202 154 26 . 44 49 . . Explosions 512 | . . 21 . 52 . . 133 78 . 96 . . . 75 57 . Melee . | . . . . . . . . . . . . . . . . . Knockbacks . | . . . . . . . . . . . . . . . . . Impact . | . . . . . . . . . . . . . . . . . Kinetic . | . . . . . . . . . . . . . . . . . Secondary . | . . . . . . . . . . . . . . . . . Self-Inflicted Damage 1055 | . . . . 31 . . 83 466 . 297 . . . 178 . . Shots 16 | . . . . 1 . . 1 8 . 4 . . . 2 . . Rammed 6 | . . . . 1 . . . 5 . . . . . . . . Targets Rammed 8 | . . . . 1 . . . 7 . . . . . . . . Kicked . | . . . . . . . . . . . . . . . . . Crushed 2 | . . . . . . . . 2 . . . . . . . . Highest Temperature 440 | . 42 26 240 324 84 223 393 413 303 312 339 269 120 440 141 237 Average Temperature 93 | . 22 9 104 67 28 76 144 107 100 81 102 118 41 172 31 99 Received Heat Transfer 5440 | . 204 228 48 1023 207 . 606 612 201 315 303 57 . 523 1005 108 Effects 17 | . . . . 2 . . 1 1 . 3 . . . 10 . . Shutdowns 3 | . . . . 1 . . . . . . . . . 2 . . Energy Bleed 2 | . . . . . . . . 1 . . . . . 1 . . Interference 9 | . . . . . . . . . . 3 . . . 6 . . Matter Decay 1 | . . . . 1 . . . . . . . . . . . . Damage (minor) 2 | . . . . . . . 1 . . . . . . 1 . . Siege Activations 13 | . . . . . . . . . . . . . . 4 9 . Total Turns 182 | . . . . . . . . . . . . . . 69 113 . Longest Duration 60 | . . . . . . . . . . . . . . 60 36 . Robots Corrupted 4 | . . . . . . . . . . . . . . 3 1 . Combat Hostiles 1 | . . . . . . . . . . . . . . . 1 . Parts Fried 13 | . . . . . . . . . . . . . . 11 2 . Impact Corruptions . | . . . . . . . . . . . . . . . . . Robots Melted 14 | . . 2 . 6 . . . . 1 1 . 1 2 1 . . Combat Hostiles 11 | . . 2 . 6 . . . . 1 . . 1 . 1 . . Parts Melted 69 | . . 4 4 8 3 . 9 1 8 2 11 3 11 5 . . Heat Transferred 29996 | . 525 1265 656 6042 1350 87 4350 1009 3118 2877 4127 260 1380 2750 200 . Parts Sabotaged 3 | . . . . . . . . . . . . . . 3 . . Parts Stolen . | . . . . . . . . . . . . . . . . . Parts Stripped . | . . . . . . . . . . . . . . . . . Power Chain Reactions 1 | . . . . . . . . . . . . . . . 1 . Alert | -11 -10 -10 -10 -8 -7 -7 -7 -7 -7 -6 -6 -6 -6 -6 -5 -5 ------- Run | Yrd Mat Min Sub Mat Fac Was Fac Gar Fac Fac Ext Cet Arc Hub Fac Upp Peak Influence 2343 | . 208 248 . 889 496 173 1294 1693 1075 488 817 679 503 1137 2343 . Initial 905 | . . 37 . . 366 173 89 905 888 409 234 456 242 105 556 . Average 556 | . 97 105 . 316 368 151 357 1335 873 336 210 583 405 658 1237 . Maximum Alert Level 5 | . 1 1 . 3 2 . 4 5 3 2 3 2 2 4 5 . Low Security (%) 29 | 100 85 70 . 44 8 100 57 . . 10 56 . . 4 . . Level 1 20 | . 14 29 . 28 71 . 9 . . 57 29 . 42 24 . . Level 2 16 | . . . . 8 19 . 14 . 3 31 9 100 57 18 16 . Level 3 20 | . . . . 18 . . 9 21 96 . 4 . . 53 33 . Level 4 9 | . . . . . . . 8 60 . . . . . . 27 . Level 5 3 | . . . . . . . . 17 . . . . . . 15 . High Security . | . . . . . . . . . . . . . . . 6 . Max Security . | . . . . . . . . . . . . . . . . . Squads Dispatched 73 | . 3 1 . 7 5 . 17 . 9 7 3 1 . 5 15 . Investigation 3 | . . 1 . . . . . . . . 1 1 . . . . Extermination 13 | . . . . . 2 . 4 . 2 3 . . . . 2 . Reinforcement 25 | . 3 . . 4 . . 6 . 1 2 1 . . 3 5 . Assault 16 | . . . . 1 . . 1 . 2 1 1 . . 2 8 . Garrison 16 | . . . . 2 3 . 6 . 4 1 . . . . . . Intercept . | . . . . . . . . . . . . . . . . . Searches Triggered . | . . . . . . . . . . . . . . . . . Construction Impeded 3 | . . . . 1 . . . . 1 . . . . . 1 . Haulers Reinforced 7 | . . . . . . . 2 . . 1 . . . . 4 . Active Scanning Responses . | . . . . . . . . . . . . . . . . . Cargo Convoy Interrupts . | . . . . . . . . . . . . . . . . . Stealth | -11 -10 -10 -10 -8 -7 -7 -7 -7 -7 -6 -6 -6 -6 -6 -5 -5 --------- Run | Yrd Mat Min Sub Mat Fac Was Fac Gar Fac Fac Ext Cet Arc Hub Fac Upp Distress Signals 16 | . 1 . . 1 1 . 1 . 2 1 2 2 . 3 2 . Communications Jammed . | . . . . . . . . . . . . . . . . . Distress Signals . | . . . . . . . . . . . . . . . . . Times Spotted 433 | . 14 16 5 65 14 6 52 21 28 31 34 10 5 30 95 7 Peak Tracking Total 12 | . 3 3 2 7 5 6 5 12 7 5 5 5 1 12 9 7 Tactical Retreats 15 | . . . . 3 . . . 1 1 1 2 . . 1 6 . Traps | -11 -10 -10 -10 -8 -7 -7 -7 -7 -7 -6 -6 -6 -6 -6 -5 -5 ------- Run | Yrd Mat Min Sub Mat Fac Was Fac Gar Fac Fac Ext Cet Arc Hub Fac Upp Traps Triggered 15 | . 1 . . 2 2 . 2 . 3 2 . . . . 3 . Indirectly . | . . . . . . . . . . . . . . . . . Trap Hack Attempts . | . . . . . . . . . . . . . . . . . Triggered . | . . . . . . . . . . . . . . . . . Disarmed . | . . . . . . . . . . . . . . . . . Reprogrammed . | . . . . . . . . . . . . . . . . . Reused . | . . . . . . . . . . . . . . . . . Traps Extracted . | . . . . . . . . . . . . . . . . . Installed . | . . . . . . . . . . . . . . . . . Triggered . | . . . . . . . . . . . . . . . . . Machines | -11 -10 -10 -10 -8 -7 -7 -7 -7 -7 -6 -6 -6 -6 -6 -5 -5 ---------- Run | Yrd Mat Min Sub Mat Fac Was Fac Gar Fac Fac Ext Cet Arc Hub Fac Upp Machines Disabled 94 | . . . . 5 . . 27 9 5 8 6 1 1 16 16 . Max in Single Turn 7 | . . . . 1 . . 7 2 2 4 1 1 1 7 5 . Garrison Access 4 | . . . . 1 . . . . . 1 . . . 1 1 . Garrison Relay 2 | . . . . . . . . 2 . . . . . . . . Phase Generator 1 | . . . . . . . . 1 . . . . . . . . Network Hub 2 | . . . . . . . . . . . . . . 2 . . Machines Repaired . | . . . . . . . . . . . . . . . . . Machines Dismantled . | . . . . . . . . . . . . . . . . . Machines Sabotaged . | . . . . . . . . . . . . . . . . . Overloaded Fab Kills . | . . . . . . . . . . . . . . . . . Hacking | -11 -10 -10 -10 -8 -7 -7 -7 -7 -7 -6 -6 -6 -6 -6 -5 -5 --------- Run | Yrd Mat Min Sub Mat Fac Was Fac Gar Fac Fac Ext Cet Arc Hub Fac Upp Machines Accessed 60 | . 5 3 . 9 4 . 9 1 5 6 10 3 . 1 4 . Terminals 47 | . 5 1 . 8 2 . 7 1 5 4 10 3 . . 1 . Fabricators 2 | . . . . . 1 . . . . . . . . . 1 . Repair Stations . | . . . . . . . . . . . . . . . . . Recycling Units 3 | . . . . 1 . . 1 . . 1 . . . . . . Scanalyzers . | . . . . . . . . . . . . . . . . . Garrison Access 6 | . . . . . 1 . 1 . . 1 . . . 1 2 . Total Hacks 143 | . 13 4 . 22 8 . 15 1 14 21 25 9 . 4 7 . Successful 53 | . 6 2 . 8 1 . 3 1 6 12 8 2 . 1 3 . Failed 90 | . 7 2 . 14 7 . 12 . 8 9 17 7 . 3 4 . Catastrophic 24 | . 1 . . 5 2 . 5 . 3 2 2 2 . 1 1 . Database Lockouts . | . . . . . . . . . . . . . . . . . Manual 41 | . 3 2 . 8 1 . 1 . 11 6 7 1 . . 1 . Terminals 119 | . 13 2 . 21 3 . 12 1 14 17 25 9 . . 2 . Fabricators 4 | . . . . . 3 . . . . . . . . . 1 . Repair Stations . | . . . . . . . . . . . . . . . . . Recycling Units 6 | . . . . 1 . . 2 . . 3 . . . . . . Scanalyzers . | . . . . . . . . . . . . . . . . . Garrison Access 12 | . . . . . 2 . 1 . . 1 . . . 4 4 . Terminal Hacks 43 | . 6 2 . 7 . . 2 1 5 9 8 2 . . 1 . Record 2 | . . . . . . . . . . . . 2 . . . . Robot Analysis 1 | . . . . . . . 1 . . . . . . . . . Prototype ID Bank 5 | . 1 . . 2 . . . . . 1 . . . . 1 . Open Door 6 | . . 2 . . . . . . . . 4 . . . . . Level Access Points 1 | . 1 . . . . . . . . . . . . . . . Branch Access Points 2 | . . . . . . . . . 1 1 . . . . . . Emergency Access Points 3 | . . . . . . . 1 1 . 1 . . . . . . Terminal Index 2 | . . . . . . . . . 1 . 1 . . . . . Unreport Threat 6 | . . . . 2 . . . . 2 1 1 . . . . . Locate Traps 7 | . 1 . . 1 . . . . 1 2 2 . . . . . Hauler Manifests 2 | . 1 . . 1 . . . . . . . . . . . . Registered Components 3 | . 1 . . 1 . . . . . 1 . . . . . . Registered Prototypes 2 | . 1 . . . . . . . . 1 . . . . . . Zone Layout 1 | . . . . . . . . . . 1 . . . . . . Fabricator Hacks 1 | . . . . . . . . . . . . . . . 1 . Network Status 1 | . . . . . . . . . . . . . . . 1 . Repair Station Hacks . | . . . . . . . . . . . . . . . . . Recycling Unit Hacks 2 | . . . . 1 . . . . . 1 . . . . . . Retrieve Components 2 | . . . . 1 . . . . . 1 . . . . . . Scanalyzer . | . . . . . . . . . . . . . . . . . Garrison Access Hacks 4 | . . . . . . . 1 . . 1 . . . 1 1 . Unlock Access 1 | . . . . . . . 1 . . . . . . . . . Seal Access 3 | . . . . . . . . . . 1 . . . 1 1 . Unauthorized Hacks 3 | . . . . . 1 . . . 1 1 . . . . . . Terminals 1 | . . . . . . . . . 1 . . . . . . . Operators 1 | . . . . . . . . . 1 . . . . . . . Fabricators 1 | . . . . . 1 . . . . . . . . . . . Liberate 1 | . . . . . 1 . . . . . . . . . . . Repair Stations . | . . . . . . . . . . . . . . . . . Recycling Units 1 | . . . . . . . . . . 1 . . . . . . Monitor 1 | . . . . . . . . . . 1 . . . . . . Scanalyzers . | . . . . . . . . . . . . . . . . . Garrison Access . | . . . . . . . . . . . . . . . . . Data Cores Recovered 2 | . . . . . . . . . . 2 . . . . . . Used . | . . . . . . . . . . . . . . . . . Hacking Detections 50 | . 5 1 . 8 4 . 9 . 5 4 7 4 . 1 2 . Full Trace Events 2 | . . . . . . . . . . . 1 1 . . . . Feedback Events . | . . . . . . . . . . . . . . . . . Feedback Blocked . | . . . . . . . . . . . . . . . . . Robot Schematics Acquired . | . . . . . . . . . . . . . . . . . Robots Built . | . . . . . . . . . . . . . . . . . Authchips . | . . . . . . . . . . . . . . . . . Time . | . . . . . . . . . . . . . . . . . Total Robot Build Rating . | . . . . . . . . . . . . . . . . . Part Schematics Acquired . | . . . . . . . . . . . . . . . . . Parts Built . | . . . . . . . . . . . . . . . . . Authchips . | . . . . . . . . . . . . . . . . . Time . | . . . . . . . . . . . . . . . . . Total Part Build Rating . | . . . . . . . . . . . . . . . . . Parts Repaired . | . . . . . . . . . . . . . . . . . Time . | . . . . . . . . . . . . . . . . . Parts Recycled . | . . . . . . . . . . . . . . . . . Recycled Matter . | . . . . . . . . . . . . . . . . . Retrieved Matter . | . . . . . . . . . . . . . . . . . Retrieved Components 3 | . . . . 2 . . . . . 1 . . . . . . Parts Scanalyzed . | . . . . . . . . . . . . . . . . . Part Schematics Acquired . | . . . . . . . . . . . . . . . . . Parts Damaged . | . . . . . . . . . . . . . . . . . Bothacking | -11 -10 -10 -10 -8 -7 -7 -7 -7 -7 -6 -6 -6 -6 -6 -5 -5 ------------ Run | Yrd Mat Min Sub Mat Fac Was Fac Gar Fac Fac Ext Cet Arc Hub Fac Upp Used RIF Installer . | . . . . . . . . . . . . . . . . . Robots Hacked . | . . . . . . . . . . . . . . . . . Non-combat . | . . . . . . . . . . . . . . . . . Combat . | . . . . . . . . . . . . . . . . . Robot Hacks Applied . | . . . . . . . . . . . . . . . . . Relay Couplers Released 9 | . . . . 2 . . . 7 . . . . . . . . Machine Destruction 9 | . . . . 2 . . . 7 . . . . . . . . Fabnet Peak Effective % . | . . . . . . . . . . . . . . . . . Robots Rewired 18 | . . . . . . . . . . 2 16 . . . . . Allies Hacked 1 | . . . . . . . . . . . 1 . . . . . Hacks Repelled 1 | . . . . . . . . . . 1 . . . . . . Allies | -11 -10 -10 -10 -8 -7 -7 -7 -7 -7 -6 -6 -6 -6 -6 -5 -5 -------- Run | Yrd Mat Min Sub Mat Fac Was Fac Gar Fac Fac Ext Cet Arc Hub Fac Upp Total Allies 35 | . . 1 . . . . 2 . . 2 25 5 . . . . Largest Group 19 | . . 1 1 . . . 2 . . 2 19 19 16 14 . . Highest-Rated Group 924 | . . 31 31 . . . 62 . . 41 704 924 896 720 . . Highest-Rated Ally 159 | . . 31 31 . . . 31 . . 29 159 153 137 96 . . Total Orders 2 | . . . . . . . . . . 2 . . . . . . EXPLORE 2 | . . . . . . . . . . 2 . . . . . . Ally Attacks 285 | . . . 8 . . . 27 . . 22 105 74 18 31 . . Total Damage 6453 | . . . 166 . . . 397 . . 244 2202 2038 352 1054 . . Kills 50 | . . . . . . . 5 . . 2 16 12 5 10 . . Allies Corrupted 3 | . . . . . . . . . . . . . . 3 . . Allies Melted . | . . . . . . . . . . . . . . . . . Intel | -11 -10 -10 -10 -8 -7 -7 -7 -7 -7 -6 -6 -6 -6 -6 -5 -5 ------- Run | Yrd Mat Min Sub Mat Fac Was Fac Gar Fac Fac Ext Cet Arc Hub Fac Upp Robot Analysis Total 1 | . . . . . . . 1 . . . . . . . . . Derelict Logs Recovered 5 | . . 2 1 . . . . . . . . . . . . 2 Drone Launches 4 | . . . . . . . . . . 4 . . . . . . Drone Recoveries 2 | . . . . . . . . . . 2 . . . . . . Exploration | -11 -10 -10 -10 -8 -7 -7 -7 -7 -7 -6 -6 -6 -6 -6 -5 -5 ------------- Run | Yrd Mat Min Sub Mat Fac Was Fac Gar Fac Fac Ext Cet Arc Hub Fac Upp Turns Passed 20399 | 53 694 1282 502 2445 696 159 2719 1454 1700 1869 1894 736 637 674 2412 473 Spaces Moved 11146 | 40 369 644 283 1124 328 182 1722 674 1117 1063 894 405 278 303 1256 464 Core 444 | 9 . . . . . 137 58 . . . . . . . 240 . Treads 6211 | . . 395 283 1124 328 45 533 185 61 366 894 405 278 303 1011 . Legs 1175 | 31 369 249 . . . . . 489 37 . . . . . . . Wheels 2852 | . . . . . . . 1131 . 1019 697 . . . . 5 . Hover 464 | . . . . . . . . . . . . . . . . 464 Flight . | . . . . . . . . . . . . . . . . . Fastest Speed 50 | 50 120 160 160 155 156 50 50 145 120 120 161 160 160 160 50 86 Average Speed 143 | 104 133 171 160 157 156 76 118 181 128 146 161 161 160 160 138 93 Slowest Speed 260 | 120 190 190 160 240 156 240 245 260 250 250 166 162 160 160 240 96 Overloaded Moves . | . . . . . . . . . . . . . . . . . Propulsion Burnouts . | . . . . . . . . . . . . . . . . . Robots Hopped . | . . . . . . . . . . . . . . . . . Cave-ins Triggered 1 | . . . . 1 . . . . . . . . . . . . Exploration Rate (%) 57 | 3 65 100 22 88 10 97 56 58 37 33 88 89 94 34 43 65 Regions Visited 16 Branch Regions 7 Pre-discovered Areas 2 | . . . . . . . . . . . . . . . . 2 Known Exits Taken 5 | . . . 1 . . . 1 . . 1 . . . 1 1 . Unknown Exits Taken 8 | 1 1 1 . 1 . . . . 1 . 1 1 1 . . . Scrap Searched 6 | . . 2 1 . . . . . . . . . . . . 3 Spaces Dug 5 | . . . . . . . . . 2 2 . . . 1 . . Terrain Destroyed 1049 | . . 31 . 78 . . 80 112 19 66 19 2 17 349 276 . Melee . | . . . . . . . . . . . . . . . . . Projectile 263 | . . . . 44 . . 8 . 18 17 19 2 17 28 110 . AOE 785 | . . 31 . 34 . . 72 112 1 49 . . . 321 165 . Terrain Rammed 1 | . . . . . . . . 1 . . . . . . . . Walls Destroyed . | . . . . . . . . . . . . . . . . . Machines Disabled . | . . . . . . . . . . . . . . . . . Actions | -11 -10 -10 -10 -8 -7 -7 -7 -7 -7 -6 -6 -6 -6 -6 -5 -5 --------- Run | Yrd Mat Min Sub Mat Fac Was Fac Gar Fac Fac Ext Cet Arc Hub Fac Upp Total 13922 | 48 474 741 305 1560 432 196 2120 815 1286 1283 1242 485 431 408 1608 488 Wait 765 | . 14 15 . 144 20 . 72 13 14 54 174 63 115 7 60 . Move 11131 | 39 368 643 282 1123 328 181 1721 673 1116 1062 893 404 277 302 1255 464 Hop . | . . . . . . . . . . . . . . . . . Pick Up 185 | 3 11 9 . 36 8 2 37 10 11 11 12 4 3 9 17 2 Fast Attach 203 | 6 2 5 1 23 7 3 41 9 15 14 13 2 5 11 40 6 Attach 112 | . 1 2 . 22 3 2 14 10 11 12 7 1 1 10 13 3 Detach 83 | . 1 1 . 11 2 . 16 3 10 13 5 1 1 9 8 2 Swap 154 | . 12 9 4 25 9 2 21 7 13 9 2 1 8 9 23 . Drop 263 | . 13 12 . 44 14 4 45 6 23 19 18 6 5 10 42 2 Fire 871 | . 52 45 18 131 41 2 153 76 49 45 49 3 16 41 150 . Melee 9 | . . . . . . . . . . . . . . . . 9 Ram 1 | . . . . . . . . 1 . . . . . . . . Kick . | . . . . . . . . . . . . . . . . . Crush 8 | . . . . 1 . . . 7 . . . . . . . . Escape Stasis 24 | . . . . . . . . . 24 . . . . . . . Rewire 113 | . . . . . . . . . . 44 69 . . . . . Trap . | . . . . . . . . . . . . . . . . . Miscellaneous . | . . . . . . . . . . . . . . . . . Route ------- -11/Scrapyard -10/Materials (discovered 5 exits: *Mat x3 / *Min x2) -10/Mines (discovered 3 exits: *Mat x2 / [*Sub]) -10/Subcaves -8/Materials (discovered 2 exits: *Fac x2) -7/Factory -7/Waste -7/Factory (discovered 4 exits: *Fac / *Low x2 / Gar) -7/Garrison -7/Factory (discovered 3 exits: *Fac / *Low x2) -6/Factory (discovered 6 exits: *Fac x2 / Low x2 / *Ext x2) -6/Extension (discovered 2 exits: *Fac / *Cet) -6/Cetus (discovered 3 exits: *Fac x2 / [*Arc]) -6/Archives (discovered 3 exits: *Fac / *Hub x2) -6/Hub_04(d) -5/Factory (discovered 2 exits: *Fac / *Upp) -5/Upper Caves (discovered 1 exit: *Upp) History --------- Turn | Location | Event 3 | -11/Scrapyard | Discovered new exit (range 16) 54 | -11/Scrapyard | Entered Materials 56 | -10/Materials | Discovered new exit (range 13) 203 | -10/Materials | Discovered new exit (range 14) 346 | -10/Materials | Identified exit to Materials 561 | -10/Materials | Discovered new exit (range 14) 722 | -10/Materials | Build established: Mutant 748 | -10/Materials | Entered Mines 832 | -10/Mines | Met a Derelict shopkeep closing up shop 1258 | -10/Mines | Learned 2 Materials zone layouts 1265 | -10/Mines | Met a Derelict who couldn't figure out how to use a Trap Extractor 1445 | -10/Mines | Discovered exit to Materials (range 7) 1469 | -10/Mines | Joined a pair of Derelicts in attacking an 0b10 outpost 1789 | -10/Mines | Build established: Scavenger-Mutant 1873 | -10/Mines | Discovered exit to Materials (range 7) 1942 | -10/Mines | Core integrity fell below 50% 1980 | -10/Mines | Escorted by a lone wolf Derelict 2013 | -10/Mines | Discovered new exit (range 8) 2028 | -10/Mines | System corruption reached 10% 2030 | -10/Mines | Entered Subcaves 2030 | -10/Subcaves | Accompanied by 1 ally 2046 | -10/Subcaves | Learned Materials terminal intel 2473 | -10/Subcaves | Discovered new exit (range 15) 2488 | -10/Subcaves | Core integrity fell below 20% 2527 | -10/Subcaves | Identified exit to Materials 2532 | -10/Subcaves | Entered Materials 2532 | -8/Materials | Evolved 4 slots: Propulsion x1, Utility x3 2534 | -8/Materials | Loaded intel: 12 terminal locations 2689 | -8/Materials | Crushed by falling debris 2993 | -8/Materials | Build established: Mutant 3241 | -8/Materials | Discovered new exit (range 3) 3285 | -8/Materials | System corruption reached 10% 3592 | -8/Materials | Build established: Hacker-Mutant 4383 | -8/Materials | Garrison activated, responded to threat 4500 | -8/Materials | Core integrity fell below 50% 4593 | -8/Materials | Lost 3 parts (1p1n1w) 4682 | -8/Materials | Lost 5 parts (2n2u1w) 4796 | -8/Materials | Discovered new exit (range 15) 4909 | -8/Materials | Build established: Mutant 4977 | -8/Materials | Entered Factory 4977 | -7/Factory | Evolved 2 slots: Propulsion x1, Utility x1 5272 | -7/Factory | Build established: Scavenger-Mutant 5429 | -7/Factory | Garrison activated, responded to threat 5591 | -7/Factory | Destroyed 10 combat bots 5673 | -7/Factory | Sucked down chute 5673 | -7/Factory | Entered Waste 5688 | -7/Waste | EMP discharged 5705 | -7/Waste | Spotted C-40 Crusher 5712 | -7/Waste | Spotted C-40 Crusher 5743 | -7/Waste | Crushed by Compactor (1 part destroyed, 1 dropped) 5751 | -7/Waste | Crushed by Compactor (1 part destroyed, 1 dropped) 5752 | -7/Waste | Spotted C-40 Crusher 5754 | -7/Waste | Crushed by Compactor (0 parts destroyed, 1 dropped) 5757 | -7/Waste | Crushed by Compactor (1 part destroyed, 2 dropped) 5763 | -7/Waste | Crushed by Compactor (1 part destroyed, 2 dropped) 5765 | -7/Waste | Spotted C-40 Crusher 5770 | -7/Waste | Spotted C-40 Crusher 5770 | -7/Waste | Spotted C-40 Crusher 5788 | -7/Waste | EMP discharged 5788 | -7/Waste | System corruption reached 10% 5794 | -7/Waste | Lost 5 parts (1p2n1u1w) 5798 | -7/Waste | Crushed by Compactor (1 part destroyed, 1 dropped) 5821 | -7/Waste | Discovered new exit (range 12) 5832 | -7/Waste | Entered Factory 6066 | -7/Factory | Build established: Mutant 6433 | -7/Factory | Build established: Scavenger-Mutant 6712 | -7/Factory | Discovered new exit (range 9) 7028 | -7/Factory | Discovered new exit (range 5) 7130 | -7/Factory | Allied Derelicts emerged from ambush trap array 7315 | -7/Factory | Discovered new exit (range 9) 7392 | -7/Factory | Garrison activated, responded to threat 7439 | -7/Factory | Build established: Mutant 7521 | -7/Factory | Core integrity fell below 50% 7966 | -7/Factory | Garrison activated, responded to threat 8159 | -7/Factory | Lost 6 parts (5u1w) 8232 | -7/Factory | First assault squad dispatched 8483 | -7/Factory | Identified exit to Garrison 8551 | -7/Factory | Entered Garrison 8573 | -7/Garrison | Triggered checkpoint 8625 | -7/Garrison | Lost 4 parts (3n1w) 8685 | -7/Garrison | Build established: Hacker-Mutant 8834 | -7/Garrison | Triggered checkpoint 8862 | -7/Garrison | Triggered checkpoint 8868 | -7/Garrison | Core integrity fell below 20% 8910 | -7/Garrison | Destroyed 15 combat bots 8919 | -7/Garrison | Lost 9 parts (1p3n2u3w) 9166 | -7/Garrison | Discovered new exit (range 10) 9221 | -7/Garrison | H-XX Assembler disabled 9282 | -7/Garrison | Found Prototype Device 9282 | -7/Garrison | Identified Active Sensor Suite 9319 | -7/Garrison | Build established: Scavenger-Mutant 9521 | -7/Garrison | Phase Generator disabled 9575 | -7/Garrison | Garrison Relay disabled 9823 | -7/Garrison | Garrison Relay disabled 10005 | -7/Garrison | Entered Factory 10178 | -7/Factory | Identified exit to Lower Caves 10347 | -7/Factory | Build established: Mutant 10462 | -7/Factory | Garrison activated, responded to threat 10521 | -7/Factory | Destroyed 7 combat bots 10805 | -7/Factory | First assault squad dispatched 11040 | -7/Factory | Found Prototype Launcher 11040 | -7/Factory | Identified Rocket Array 11662 | -7/Factory | Garrison activated, responded to threat 11687 | -7/Factory | Discovered new exit (range 15) 11705 | -7/Factory | Entered another Factory area 11705 | -6/Factory | Evolved 2 slots: Power x1, Weapon x1 12008 | -6/Factory | Build established: Gunner 12091 | -6/Factory | Discovered new exit (range 11) 12128 | -6/Factory | Identified exit to Factory 12507 | -6/Factory | Build established: Hacker-Gunner 13013 | -6/Factory | Spotted B-75 Beast 13079 | -6/Factory | Identified exit to Lower Caves 13079 | -6/Factory | Identified exit to Extension 13319 | -6/Factory | Garrison activated, responded to threat 13455 | -6/Factory | First assault squad dispatched 13461 | -6/Factory | Discovered exit to Factory (range 5) 13574 | -6/Factory | Entered Extension 13981 | -6/Extension | Spotted B-75 Beast 14146 | -6/Extension | Destroyed B-75 Beast 14153 | -6/Extension | Spotted B-75 Beast 14202 | -6/Extension | Destroyed B-75 Beast 14885 | -6/Extension | Rescued a captive Derelict 14885 | -6/Extension | Rescued a captive Derelict 15042 | -6/Extension | Lost 3 allies 15047 | -6/Extension | Build established: Commander-Gunner 15118 | -6/Extension | Rescued a captive Derelict 15180 | -6/Extension | Rescued a captive Derelict 15180 | -6/Extension | Rescued a captive Derelict 15234 | -6/Extension | Lost 3 allies 15293 | -6/Extension | Rescued a captive Derelict 15294 | -6/Extension | Rescued a captive Derelict 15324 | -6/Extension | First assault squad dispatched 15328 | -6/Extension | Rescued A7 15343 | -6/Extension | Rescued a captive Derelict 15424 | -6/Extension | Discovered exit to Factory (range 10) 15425 | -6/Extension | Discovered new exit (range 6) 15468 | -6/Extension | Entered Cetus 15468 | -6/Cetus | Accompanied by 19 allies (A7) 15473 | -6/Cetus | Acquired a Cetus Manufacturing Module code from A7 15488 | -6/Cetus | Spotted Cetus Guard 15488 | -6/Cetus | Spotted Cetus Guard 15490 | -6/Cetus | Spotted Cetus Guard 15494 | -6/Cetus | Spotted Cetus Guard 15495 | -6/Cetus | Allies destroyed Cetus Guard 15500 | -6/Cetus | Allies destroyed Cetus Guard 15507 | -6/Cetus | Allies destroyed Cetus Guard 15509 | -6/Cetus | Allies destroyed Cetus Guard 15536 | -6/Cetus | Lost 5 allies 15586 | -6/Cetus | Discovered exit to Factory (range 15) 15763 | -6/Cetus | Started Cetus Manufacturing Module 15788 | -6/Cetus | Manufactured an Enhanced Grunt 15808 | -6/Cetus | Escorted A7 to Cetus Mainframe 15813 | -6/Cetus | Manufactured an Enhanced Grunt 15831 | -6/Cetus | Discovered new exit (range 16) 15838 | -6/Cetus | Manufactured an Enhanced Grunt 15859 | -6/Cetus | Spotted Cetus Guard 15860 | -6/Cetus | Spotted Cetus Guard 15862 | -6/Cetus | Spotted Cetus Guard 15863 | -6/Cetus | Manufactured an Enhanced Grunt 15872 | -6/Cetus | Spotted Cetus Guard 15873 | -6/Cetus | Discovered exit to Factory (range 16) 15875 | -6/Cetus | Allies destroyed Cetus Guard 15879 | -6/Cetus | Allies destroyed Cetus Guard 15881 | -6/Cetus | Allies destroyed Cetus Guard 15884 | -6/Cetus | Destroyed Cetus Guard 15886 | -6/Cetus | Met Revision 17 15888 | -6/Cetus | Manufactured an Enhanced Grunt 16204 | -6/Cetus | Entered Archives 16204 | -6/Archives | Accompanied by 16 allies (A7) 16209 | -6/Archives | Received a hacking code to weaken MAIN.C 16248 | -6/Archives | Discovered new exit (range 15) 16270 | -6/Archives | Discovered new exit (range 13) 16325 | -6/Archives | Discovered exit to Factory (range 15) 16841 | -6/Archives | Entered Hub_04(d) 16841 | -6/Hub_04(d) | Accompanied by 14 allies 17031 | -6/Hub_04(d) | Network Hub disabled 17057 | -6/Hub_04(d) | Murdered 3 allies 17154 | -6/Hub_04(d) | Build established: Scavenger-Gunner 17181 | -6/Hub_04(d) | Spotted Lightning 17183 | -6/Hub_04(d) | Spotted Lightning 17191 | -6/Hub_04(d) | First assault squad dispatched 17194 | -6/Hub_04(d) | Destroyed Lightning 17201 | -6/Hub_04(d) | Lost 8 allies 17216 | -6/Hub_04(d) | Found Prototype Processor 17229 | -6/Hub_04(d) | Destroyed Lightning 17235 | -6/Hub_04(d) | System corruption reached 10% 17255 | -6/Hub_04(d) | Core integrity fell below 50% 17301 | -6/Hub_04(d) | Destroyed 9 combat bots 17308 | -6/Hub_04(d) | Lost 5 parts (2p1u2w) 17357 | -6/Hub_04(d) | Identified Exp. Targeting Computer 17361 | -6/Hub_04(d) | Found Prototype Energy Cannon 17361 | -6/Hub_04(d) | Identified EMDS 17389 | -6/Hub_04(d) | Spotted B-75 Beast 17489 | -6/Hub_04(d) | Found Corrupted Prototype Device 17506 | -6/Hub_04(d) | Discovered exit to Factory (range 4) 17513 | -6/Hub_04(d) | Network Hub disabled 17515 | -6/Hub_04(d) | Entered Factory 17515 | -5/Factory | Evolved 2 slots: Utility x2 18115 | -5/Factory | First assault squad dispatched 18508 | -5/Factory | Discovered new exit (range 13) 18705 | -5/Factory | Identified exit to Factory 18715 | -5/Factory | Found Prototype Launcher 18715 | -5/Factory | Identified Mni. Smartbomb Launcher 18902 | -5/Factory | Destroyed 9 combat bots 19467 | -5/Factory | Destroyed 10 combat bots 19696 | -5/Factory | Spotted B-75 Beast 19739 | -5/Factory | System corruption reached 10% 19774 | -5/Factory | High security lockdown imminent 19788 | -5/Factory | Core integrity fell below 50% 19794 | -5/Factory | Identified Exp. Thermal Shield 19830 | -5/Factory | Lost 23 parts (1p9n8u5w) 19837 | -5/Factory | Core integrity fell below 20% 19854 | -5/Factory | High security lockdown engaged 19920 | -5/Factory | Discovered new exit (range 16) 19927 | -5/Factory | Identified exit to Upper Caves 19927 | -5/Factory | Entered Upper Caves 19933 | -5/Upper Caves | Met a Warlord Commander 19934 | -5/Upper Caves | Learned location of Warlord (-4) 19935 | -5/Upper Caves | Warlord Commander delivered Encrypted Comm Array 19938 | -5/Upper Caves | Found Encrypted Comm Array 19969 | -5/Upper Caves | Learned Factory garrison access intel 20060 | -5/Upper Caves | Build established: Mutant 20091 | -5/Upper Caves | Learned location of Armory (-3) 20153 | -5/Upper Caves | Discovered new exit (range 14) 20158 | -5/Upper Caves | Encountered a Warlord checkpoint 20165 | -5/Upper Caves | Identified exit to Upper Caves 20361 | -5/Upper Caves | Attracted the attention of an 0b10 base 20400 | -5/Upper Caves | Destroyed by G-50 Soldier with Heavy Laser Last Messages --------------- 20273_ 8XQNG|0C ZLS3SIAYWWLL 20288_ System corrupted: Heat flow error (+255). 20308_ System corrupted: Matter fused (-6). 20323_ System corrupted: Matter fused (-9). 20347_ System corrupted: Energy discharge (-66). 20360_ S-27 Virus springs to life. 20361_ Penetrated by Slug. 20361_ Slug penetrates Wall. 20366_ Q2KGXSEKGA/L>6AKD>2A6WY3G IBB3E 20367_ Penetrated by Slug. 20370_ Slug penetrates Wall. 20376_ Y-72 Warden suffers critical hit (Smash). 20376_ Penetrated by Slug. 20381_ System corrupted: Heat flow error (+101). 20382_ Penetrated by Slug. 20382_ Slug penetrates Wall. 20383_ Adv. Shield Generator destroyed. 20385_ Neutrino Core destroyed. 20385_ Critical hit (Burn: +37). 20390_ Imp. Titanium Leg destroyed. Map ----- +----------------------------------------------------+ | #????????????????????????????????????????????????? | | #????????????????????????????????????????????????? | | "####????????#########???????????????????????????? | | ##??????## ## ###?????????????????????????? | | #??????# ##????????????????????????? | | #??????# #????????????????????????? | | # ######### ## #??????????????#?????????? | | ## ### #####???????????### ?????????? | | ### #####??????????## ?????????? | | ## ## #?????????? ?????????? | | #### #??????????? #?????##### | | ##?## ##?????????? #???? "# | | #??# ##?????????# #??? "# | | #??## #?????????# #?"" "# | | ##???## ##????????# # # | | ########## ## #????????# # # | | ### #### ###### #???????## + ""# | | ## ######????# #???????#" # T"# | | ##?###???####???????## " ""# | | # ## #???????????????# #""""" ""# | | ## ## #??????????????## ######+#### | | ?# ### #?????????????## | | ?# ##?## #######?????????# | | # ####???# #### ##????????## #### | | ##?????## ## ############ | | ##??????# @ sg | | ##??????### gg ## | | ####?????## ### ######### #####? | | ???????## ##?#######???????# ######??### | | ?????????## #????????????????# #???????# | | ???????????# ####?????????????# #???????# | | #????????????# ## ##????????????# #????????? | | #????###?????## #????????????# ####??????? | | ##??## ##?#### ###########??# ## ##?????? | | #### ### #### ####### | | ## ## # | | ############ | | ##??????????# """"""" | | ## ##???????????### """""" ## | | # ###### ####??????????????# " " " #? | | ######????#####?????????????????# #? | | ????????????????????????????????# """"""" #? | | ????????????????????????????????# """""" ## #? | | ????????????????????????????????# " " " ### #? | | ????????????????????????????????# # #? | | ????????????????????????????????# #? | | ????????????????????????????????#################? | | ?????????????????????????????????????????????????? | | ?????????????????????????????????????????????????? | | ?????????????????????????????????????????????????? | +----------------------------------------------------+ Best States ------------- Heat Dissipation 94 Energy Generation 39 Energy Capacity 565 Matter Stores 300 Matter Capacity 300 Sight Range 20 Robot Scan Range 15 Terrain Scan Range 14 Terrain Scan Density 10 Armor Coverage 600 Resistance: KI 30 Resistance: TH 30 Resistance: EM 25 Weapon Shielding 66 Evasion (%) 55 Targeting Accuracy 20 Melee Accuracy 6 Core Analysis 6 Armor Integrity Analysis 30 Recoil Reduction 4 Particle Charging 15 Offensive Hacking 20 Defensive Hacking 12 Item Schematics ----------------- None Robot Schematics ------------------ None Fabricated ------------ Nothing Alien Tech Used ----------------- None Achievements -------------- Collateral Damage Preemptive Strike Challenges ------------ None Game ------ Seed EncryptedGrapheneConstruct Manual? 0 Play Time 05:12:24 Cumulative 156.4 hours Start 2024.07.28 @ 00:26:27 End 2024.07.28 @ 05:48:04 Sessions 1 Manual Loads 0 Difficulty Rogue Special Mode None Game No. 55 Rogue 55 Adventurer 0 Explorer 0 Win Type - Total 1 Types 1/0/0/0/0/0/0/0/0 Lore% 56 Gallery% 63 Achievement% 48 Wizard Run 0 Options --------- Layout 0 ASCII 0 Keyboard 1 Movement Numpad Keybinds 0 Fullscreen 1 Font 18/X11Bold Map View 76x50 Zoom Use 0% Tactical HUD 1 Map Filters NONE Filters NONE Steam 1 RUN: cf386c1d-a7ec-4ee3-9d8a-a151d641369e